bitfinex-derivatives/quotes_SOLF0:USTF0_20250505
["timestamp","ask_amount","ask_price","bid_price","bid_amount"]
[1746424853400,6.7863,147.35,147.24,28.9]
[1746424854104,6.7863,147.35,147.3,6.7882]
[1746424854701,6.7858,147.36,147.31,6.7879]
[1746424854902,1.9795,147.37,147.29,28.9]
[1746424855102,1.9795,147.37,147.3,2.0811]
[1746424855302,1.9795,147.37,147.32,6.7872]
[1746424856109,8.7649,147.37,147.33,6.787]
[1746424856406,1.9795,147.37,147.3,2.0811]
[1746424857209,6.7858,147.36,147.32,6.7874]
[1746424857406,1.9795,147.37,147.3,2.0811]
[1746424857802,1.9795,147.37,147.3,8.8693]
[1746424858312,1.9795,147.37,147.29,28.9]
[1746424858313,6.7876,147.32,147.29,28.9]
[1746424858807,6.7867,147.34,147.29,28.9]
[1746424859008,31.0354,147.36,147.29,28.9]
[1746424859509,6.7883,147.31,147.26,6.7903]
[1746424860012,6.7885,147.3,147.26,6.7903]
[1746424860506,28.9,147.31,147.25,7.81932183]
[1746424860708,1.9908,147.3,147.22,36.71932183]
[1746424861009,1.9908,147.3,147.24,6.7909]
[1746424861310,6.7892,147.29,147.22,36.71932183]
[1746424861709,28.9,147.31,147.22,36.71932183]
[1746424862109,28.9,147.31,147.24,6.7911]
[1746424862312,28.9,147.31,147.22,36.71932183]
[1746424862714,6.788,147.31,147.27,6.7895]
[1746424863122,6.788,147.31,147.22,36.71932183]
[1746424863307,6.788,147.31,147.22,28.9]
[1746424864017,1.9908,147.35,147.22,28.9]
[1746424864219,1.9908,147.35,147.24,8.14874249]
[1746424864922,6.7866,147.34,147.3,6.7882]
[1746424865419,1.9908,147.35,147.29,28.9]
[1746424865621,8.7773,147.35,147.31,6.788]
[1746424865821,1.9908,147.35,147.29,28.9]
[1746424866114,8.14874249,147.41,147.29,28.9]
[1746424866308,30.8415,147.39,147.29,28.9]
[1746424866512,6.7858,147.36,147.32,6.7873]
[1746424867019,6.7861,147.36,147.32,6.7873]
[1746424867417,30.8415,147.39,147.33,6.7871]
[1746424867815,30.8415,147.39,147.3,2.1311]
[1746424868319,6.7857,147.36,147.32,6.7873]
[1746424868521,30.8415,147.39,147.29,28.9]
[1746424868716,6.7857,147.36,147.31,6.7879]
[1746424868916,30.8415,147.39,147.29,28.9]
[1746424869217,6.7856,147.37,147.32,6.7872]
[1746424869718,6.7856,147.37,147.29,28.9]
[1746424870014,30.8415,147.39,147.29,28.9]
[1746424870425,30.8415,147.39,147.3,6.7883]
[1746424870720,30.8415,147.39,147.29,28.9]
[1746424870921,6.7857,147.36,147.31,6.7878]
[1746424871123,30.8415,147.39,147.31,6.7878]
[1746424872120,6.7861,147.36,147.32,6.7875]
[1746424872622,6.7862,147.35,147.31,6.7878]
[1746424873622,6.7867,147.34,147.3,6.7883]
[1746424873824,38.99024249,147.39,147.29,28.9]
[1746424874227,6.7874,147.33,147.29,28.9]
[1746424874527,38.99024249,147.39,147.29,28.9]
[1746424874721,8.14874249,147.36,147.26,37.47932183]
[1746424875025,29.66,147.35,147.26,37.47932183]
[1746424875225,29.66,147.35,147.26,7.81932183]
[1746424875423,6.7892,147.29,147.26,7.81932183]
[1746424876826,6.7892,147.29,147.23,29.66]
[1746424877027,29.66,147.31,147.23,29.66]
[1746424877423,6.7904,147.26,147.23,29.66]
[1746424877816,29.66,147.31,147.23,29.66]
[1746424878026,6.79,147.27,147.23,29.66]
[1746424878924,6.7904,147.26,147.23,29.66]
[1746424879127,29.66,147.31,147.23,29.66]
[1746424879429,6.7897,147.28,147.23,6.7916]
[1746424879628,29.66,147.31,147.21,2.0342]
[1746424880129,8.14874249,147.3,147.19,7.81932183]
[1746424880432,8.14874249,147.3,147.18,9.92902183]
[1746424880627,6.7912,147.25,147.2,6.7928]
[1746424880828,29.68,147.27,147.2,6.7928]
[1746424881028,29.68,147.27,147.18,9.92902183]
[1746424881430,6.7907,147.26,147.21,6.7925]
[1746424881730,29.68,147.27,147.18,9.92902183]
[1746424881934,6.7908,147.25,147.2,6.7928]
[1746424882127,6.7908,147.25,147.18,9.92902183]
[1746424882633,6.7905,147.26,147.21,6.7926]
[1746424883033,29.68,147.27,147.21,6.7926]
[1746424883832,6.791,147.25,147.21,6.7926]
[1746424884033,6.791,147.25,147.17,31.692]
[1746424884034,37.82874249,147.27,147.17,31.692]
[1746424884229,2.1159,147.24,147.14,29.68]
[1746424884430,6.7923,147.22,147.14,29.68]
[1746424884734,29.68,147.23,147.14,29.68]
[1746424885031,36.4718,147.23,147.14,29.68]
[1746424885230,36.4718,147.23,147.19,6.7935]
[1746424887836,29.68,147.23,147.21,6.7925]
[1746424888429,29.68,147.23,147.14,29.68]
[1746424888430,29.68,147.23,147.2,6.793]
[1746424888735,29.68,147.23,147.14,29.68]
[1746424889226,29.68,147.23,147.2,6.7928]
[1746424889431,29.68,147.23,147.14,29.68]
[1746424890435,29.68,147.23,147.2,6.7927]
[1746424890635,29.68,147.23,147.14,29.68]
[1746424890938,29.68,147.23,147.17,6.7942]
[1746424891132,29.68,147.23,147.14,29.68]
[1746424891330,6.7931,147.2,147.14,29.68]
[1746424891737,6.7931,147.2,147.16,6.7946]
[1746424892033,29.68,147.23,147.16,6.7946]
[1746424892237,6.7936,147.19,147.16,6.7946]
[1746424892438,8.14590622,147.21,147.12,0.57357]
[1746424892633,8.15068237,147.2,147.12,0.57357]
[1746424893034,8.15068237,147.2,147.12,7.37007]
[1746424893234,6.7953,147.16,147.12,7.37007]
[1746424893431,29.68,147.19,147.12,0.57357]
[1746424893733,2.1381,147.18,147.12,0.57357]
[1746424894438,6.7951,147.16,147.12,0.57357]
[1746424895343,6.7951,147.16,147.12,7.37027]
[1746424895838,6.7946,147.17,147.13,6.7962]
[1746424896140,2.1381,147.18,147.13,6.7962]
[1746424896341,2.1381,147.18,147.12,0.57357]
[1746424896839,6.7957,147.15,147.12,0.57357]
[1746424897340,6.7951,147.16,147.12,7.37037]
[1746424897841,6.7955,147.15,147.12,7.37037]
[1746424898043,10.28878237,147.18,147.12,0.57357]
[1746424898436,6.7962,147.14,147.12,0.57357]
[1746424898837,29.7,147.15,147.12,0.57357]
[1746424899038,6.7959,147.14,147.12,0.57357]
[1746424900238,36.4955,147.15,147.12,0.57357]
[1746424900748,6.7959,147.14,147.12,0.57357]
[1746424901043,29.7,147.15,146.98,31.27728734]
[1746424901345,6.7967,147.13,147.08,6.7983]
[1746424901548,6.7967,147.13,146.99,41.89738237]
[1746424901845,6.7967,147.13,147.08,6.7983]
[1746424902045,29.7,147.15,147.04,29.7]
[1746424902649,6.7966,147.13,147.09,6.7979]
[1746424903842,6.7968,147.12,147.08,6.7985]
[1746424904548,6.7965,147.13,147.09,6.7981]
[1746424904750,29.7,147.15,147.09,6.7981]
[1746424905548,6.7966,147.13,147.09,6.7981]
[1746424905845,29.7,147.15,147.08,6.7985]
[1746424906045,6.7971,147.12,147.08,6.7985]
[1746424906246,29.7,147.15,147.07,6.799]
[1746424906643,6.7976,147.11,147.07,6.799]
[1746424906843,29.7,147.15,147.07,6.799]
[1746424907046,29.7,147.15,147.06,6.7994]
[1746424907344,6.798,147.1,147.06,6.7994]
[1746424908048,8.8431,147.1,147.07,6.799]
[1746424908247,2.0451,147.1,147.07,6.799]
[1746424908641,8.8428,147.1,147.06,6.7994]
[1746424908843,2.0451,147.1,147.06,6.7994]
[1746424909248,2.0451,147.1,147.01,29.04]
[1746424909847,3.9841,147.09,147.01,29.04]
[1746424910250,3.9841,147.09,147.02,7.81932183]
[1746424911144,6.7991,147.08,147.03,6.8008]
[1746424911350,6.7991,147.08,147.02,7.81932183]
[1746424912050,6.7991,147.08,147.04,6.8002]
[1746424913651,6.7991,147.08,147.05,6.8]
[1746424915546,10.7825,147.09,147.05,6.8]
[1746424915751,3.9841,147.09,147.05,6.8]
[1746424917252,6.7987,147.08,147.05,6.8]
[1746424918353,6.7987,147.08,147.04,6.8002]
[1746424918553,29.04,147.07,147.04,6.8002]
[1746424921255,35.8392,147.07,147.04,6.8002]
[1746424921556,35.8392,147.07,147.03,6.8008]
[1746424921751,29.04,147.07,146.99,11.86602183]
[1746424922253,35.8394,147.07,146.99,11.86602183]
[1746424922558,35.8394,147.07,147.03,6.8007]
[1746424923058,6.7996,147.06,147.03,6.8007]
[1746424923261,29.04,147.07,147.03,6.8007]
[1746424923960,6.7996,147.06,147.03,6.8007]
[1746424924159,29.04,147.07,146.99,33.34088734]
[1746424924962,6.8002,147.05,147.01,6.8017]
[1746424925560,6.8005,147.04,147.01,6.8017]
[1746424926058,6.8002,147.05,147.01,6.8017]
[1746424926363,29.04,147.07,146.99,60.31728734]
[1746424926559,29.04,147.07,147.0,2.041]
[1746424926760,29.04,147.07,147.05,6.7998]
[1746424926956,29.04,147.07,147.0,2.041]
[1746424927764,29.04,147.07,147.05,6.7997]
[1746424927962,29.04,147.07,147.0,2.041]
[1746424928262,29.04,147.07,147.06,6.7996]
[1746424929965,1.9367,147.09,147.06,6.7996]
[1746424930168,1.9367,147.09,147.07,6.799]
[1746424930468,1.9367,147.09,147.02,31.27728734]
[1746424930660,1.9367,147.09,147.06,6.7994]
[1746424931270,8.7349,147.09,147.06,6.7994]
[1746424931465,1.9367,147.09,147.06,6.7994]
[1746424932068,1.9367,147.09,147.07,6.799]
[1746424933070,1.9367,147.09,147.06,6.7995]
[1746424933463,1.9367,147.09,147.01,31.27728734]
[1746424934079,6.799,147.08,147.05,6.8]
[1746424934279,6.799,147.08,147.01,31.27728734]
[1746424934476,6.7993,147.07,147.03,6.8009]
[1746424934683,6.7993,147.07,147.01,31.27728734]
[1746424934879,5.0999549,147.04,147.01,31.27728734]
[1746424935382,5.0999549,147.04,146.99,7.81932183]
[1746424935682,11.9006549,147.04,147.0,6.802]
[1746424939189,6.8007,147.04,147.0,6.802]
[1746424940085,11.9000549,147.05,146.94,42.23387673]
[1746424940585,11.9000549,147.05,147.01,6.8016]
[1746424943386,11.9000549,147.05,147.02,6.8014]
[1746424943788,11.9000549,147.05,146.94,42.23387673]
[1746424944287,11.9000549,147.05,147.01,6.8017]
[1746424944990,6.8005,147.04,147.01,6.8017]
[1746424945592,6.8011,147.03,146.94,34.4145549]
[1746424945787,5.0999549,147.02,146.94,28.2]
[1746424945994,33.2999549,147.02,146.94,28.2]
[1746424946287,28.2,147.02,146.94,28.2]
[1746424946683,28.2,147.02,146.99,6.8024]
[1746424947389,28.2,147.02,146.94,28.2]
[1746424948090,28.2,147.02,147.0,6.8019]
[1746424948586,33.2999549,147.02,146.94,28.2]
[1746424949284,33.2999549,147.02,146.96,6.8039]
[1746424949984,6.8028,146.99,146.96,6.8039]
[1746424950684,6.8033,146.98,146.94,28.2]
[1746424950890,35.3917549,147.02,146.93,1.9484]
[1746424951095,6.8036,146.98,146.94,6.8047]
[1746424951588,35.3917549,147.02,146.94,6.8047]
[1746424951788,6.8036,146.98,146.94,6.8047]
[1746424951984,35.3917549,147.02,146.93,6.8054]
[1746424952186,6.804,146.97,146.93,6.8054]
[1746424954494,6.8042,146.96,146.93,6.8054]
[1746424955192,6.8039,146.97,146.94,6.8051]
[1746424955491,28.22,146.98,146.88,28.22]
[1746424955692,6.8045,146.96,146.92,6.8058]
[1746424956386,6.8045,146.96,146.93,6.8056]
[1746424958896,6.8039,146.97,146.93,6.8056]
[1746424959096,28.22,146.98,146.93,6.8056]
[1746424959289,30.172,146.98,146.93,6.8056]
[1746424960195,6.8043,146.96,146.93,6.8056]
[1746424961397,6.8043,146.96,146.92,6.8058]
[1746424961696,5.0999549,146.96,146.88,28.22]
[1746424961899,5.0999549,146.96,146.9,6.8067]
[1746424962101,6.8055,146.94,146.9,6.8067]
[1746424963800,6.8049,146.95,146.91,6.8065]
[1746424964501,2.0123,146.97,146.88,28.22]
[1746424964695,30.172,146.98,146.88,28.22]
[1746424965097,36.9755,146.98,146.94,6.8048]
[1746424965701,36.9755,146.98,146.88,28.22]
[1746424966402,30.172,146.98,146.88,28.22]
[1746424966601,30.172,146.98,146.89,1.1181]
[1746424967102,30.172,146.98,146.94,6.8047]
[1746424967103,36.9756,146.98,146.94,6.8047]
[1746424967508,30.172,146.98,146.89,1.1181]
[1746424968800,30.172,146.98,146.95,6.8043]
[1746424969105,36.9754,146.98,146.95,6.8043]
[1746424969308,30.172,146.98,146.89,1.1181]
[1746424969503,30.172,146.98,146.9,2.0615]
[1746424969803,30.172,146.98,146.91,1.9876]
[1746424970106,30.172,146.98,146.95,6.8043]
[1746424970309,30.172,146.98,146.91,1.9876]
[1746424971105,30.172,146.98,146.95,6.8043]
[1746424971998,30.172,146.98,146.91,1.9876]
[1746424971999,1.9658,147.01,146.91,1.9876]
[1746424972206,4.1403,147.02,146.92,27.42]
[1746424972405,2.0485,147.02,146.92,27.42]
[1746424972905,8.85,147.02,146.92,27.42]
[1746424973702,8.85,147.02,146.99,6.8027]
[1746424974298,29.4294,147.06,146.96,27.42]
[1746424974498,29.4294,147.06,146.97,27.42]
[1746424974708,29.4294,147.06,146.97,29.382]
[1746424974907,29.4294,147.06,147.02,6.8011]
[1746424976107,29.4294,147.06,147.0,6.802]
[1746424976306,5.0999549,147.05,146.97,27.42]
[1746424976810,6.8017,147.02,146.97,27.42]
[1746424977308,6.8017,147.02,146.98,6.8029]
[1746424977507,6.8017,147.02,146.97,27.42]
[1746424977809,6.8011,147.03,146.97,27.42]
[1746424978302,6.8011,147.03,146.99,6.8027]
[1746424979407,5.0999549,147.05,146.98,6.8032]
[1746424979711,5.0999549,147.05,146.94,27.4]
[1746424980305,5.0999549,147.02,146.94,27.4]
[1746424980507,29.4172,147.01,146.94,27.4]
[1746424980707,6.8026,147.0,146.96,6.8038]
[1746424981100,6.8026,147.0,146.94,27.4]
[1746424981301,29.4172,147.01,146.97,6.8034]
[1746424981505,29.4172,147.01,146.94,27.4]
[1746424981705,31.379,147.01,146.94,27.4]
[1746424982611,5.0999549,146.99,146.91,27.4]
[1746424983211,6.804,146.97,146.93,6.8054]
[1746424983711,5.0999549,146.99,146.93,6.8054]
[1746424984108,6.8045,146.96,146.92,6.8059]
[1746424984313,27.4,146.97,146.91,7.96411992]
[1746424984611,1.9507,146.95,146.91,7.96411992]
[1746424985213,6.8052,146.94,146.91,14.77051992]
[1746424985603,1.9507,146.95,146.91,14.77051992]
[1746424985807,8.7556,146.95,146.91,14.77051992]
[1746424986310,1.9507,146.95,146.88,27.4]
[1746424987313,6.8059,146.93,146.88,27.4]
[1746424987809,6.8059,146.93,146.89,6.8071]
[1746424988014,6.8059,146.93,146.88,27.4]
[1746424988314,6.8053,146.94,146.9,6.8069]
[1746424989117,6.8056,146.93,146.89,6.8073]
[1746424990117,6.8056,146.93,146.9,6.8069]
[1746424991417,6.8056,146.93,146.89,6.8073]
[1746424992111,6.8056,146.93,146.88,27.4]
[1746424992112,6.8053,146.94,146.9,6.8069]
[1746424992613,3.9838,146.95,146.9,6.8069]
[1746424992918,3.9838,146.95,146.89,6.8073]
[1746424993321,6.8058,146.93,146.89,6.8073]
[1746424993818,6.8063,146.92,146.88,34.2079]
[1746424994215,6.8063,146.92,146.88,6.8079]
[1746424994809,2.0666,146.94,146.88,6.8079]
[1746424995016,26.9,146.93,146.85,146.63504856]
[1746424995718,6.8062,146.92,146.85,146.63504856]
[1746424996019,26.9,146.93,146.85,146.63504856]
[1746424996220,33.7057,146.93,146.85,146.63504856]
[1746424996412,33.7057,146.93,146.86,2.1086]
[1746424996813,6.8061,146.92,146.88,6.8078]
[1746424997020,26.9,146.93,146.88,6.8078]
[1746424998020,26.9,146.93,146.87,6.8082]
[1746424999223,6.8072,146.9,146.87,6.8082]
[1746425000227,6.8072,146.9,146.86,6.8086]
[1746425001821,6.8072,146.9,146.87,6.8083]
[1746425002417,6.8072,146.9,146.85,146.63504856]
[1746425002624,6.8072,146.9,146.86,6.8086]
[1746425002923,31.9999549,146.93,146.85,146.63504856]
[1746425003220,31.9999549,146.93,146.85,126.02404856]
[1746425003624,6.8078,146.89,146.85,126.02404856]
[1746425003826,31.9999549,146.93,146.85,119.21504856]
[1746425004122,6.8082,146.88,146.82,29.0086]
[1746425004324,6.8082,146.88,146.84,6.8093]
[1746425004723,6.8082,146.88,146.82,29.0086]
[1746425005225,6.8082,146.88,146.85,6.809]
[1746425005523,6.8076,146.89,146.82,29.0086]
[1746425005719,31.9999549,146.93,146.86,6.8086]
[1746425005922,31.9999549,146.93,146.82,29.0086]
[1746425006118,6.8065,146.91,146.82,29.0086]
[1746425006524,6.8065,146.91,146.87,6.808]
[1746425006724,6.8071,146.9,146.87,6.808]
[1746425007731,6.8076,146.89,146.82,29.0086]
[1746425008833,6.8076,146.89,146.85,6.8089]
[1746425009730,31.9999549,146.93,146.86,6.8088]
[1746425011031,6.8079,146.89,146.85,6.8092]
[1746425013130,6.808,146.88,146.85,6.8092]
[1746425013837,6.808,146.88,146.84,6.8095]
[1746425014836,6.808,146.88,146.85,6.8092]
[1746425015241,6.8076,146.89,146.85,6.8092]
[1746425015426,31.9999549,146.93,146.85,6.8092]
[1746425015632,5.0999549,146.9,146.82,26.9]
[1746425015826,6.8086,146.87,146.82,26.9]
[1746425016236,6.8086,146.87,146.84,6.8096]
[1746425017037,6.8086,146.87,146.83,6.8101]
[1746425017538,6.8089,146.86,146.82,33.7105]
[1746425017938,6.8089,146.86,146.82,26.9]
[1746425019133,6.8099,146.84,146.79,28.8809]
[1746425020034,6.8102,146.83,146.8,6.8114]
[1746425020239,33.0209,146.89,146.79,28.8809]
[1746425020738,6.8101,146.84,146.81,6.8111]
[1746425021034,6.8101,146.84,146.79,28.8809]
[1746425021239,33.0209,146.89,146.79,28.8809]
[1746425021538,5.0999549,146.87,146.79,28.8809]
[1746425021734,5.0999549,146.87,146.8,6.8114]
[1746425022133,6.81,146.84,146.8,6.8114]
[1746425022330,6.81,146.84,146.81,6.8111]
[1746425022535,6.81,146.84,146.79,28.8809]
[1746425022949,6.81,146.84,146.81,6.8111]
[1746425026944,6.8103,146.83,146.8,6.8114]
[1746425029443,26.26,146.85,146.76,26.26]
[1746425029647,26.26,146.85,146.76,28.2738]
[1746425030245,6.8107,146.82,146.76,28.2738]
[1746425031046,6.8107,146.82,146.79,6.8118]
[1746425031247,6.8103,146.83,146.76,28.2738]
[1746425031449,6.8103,146.83,146.8,6.8113]
[1746425035252,6.81,146.84,146.8,6.8113]
[1746425037256,6.81,146.84,146.81,6.8111]
[1746425040656,6.81,146.84,146.76,28.2738]
[1746425041057,26.26,146.85,146.76,28.2738]
[1746425041260,5.0999549,146.84,146.76,28.2738]
[1746425041559,7.0387549,146.84,146.76,28.2738]
[1746425041757,7.0387549,146.84,146.78,6.8123]
[1746425042252,6.8114,146.81,146.78,6.8123]
[1746425042458,7.0387549,146.84,146.76,28.2738]
[1746425042659,1.9388,146.84,146.76,28.2738]
[1746425042955,8.7488,146.84,146.81,6.8111]
[1746425043558,1.9388,146.84,146.81,6.8111]
[1746425043859,1.9388,146.84,146.82,6.8106]
[1746425044053,1.9388,146.84,146.76,28.2738]
[1746425044254,8.7486,146.84,146.76,28.2738]
[1746425044455,8.7486,146.84,146.8,6.8112]
[1746425044854,8.7486,146.84,146.76,28.2738]
[1746425045558,8.7486,146.84,146.8,6.8113]
[1746425046355,8.7486,146.84,146.81,6.811]
[1746425046562,1.9388,146.84,146.81,6.811]
[1746425047058,8.7486,146.84,146.81,6.811]
[1746425049060,6.8102,146.83,146.8,6.8114]
[1746425052864,7.0387549,146.84,146.76,28.2738]
[1746425053466,6.8105,146.83,146.79,6.8118]
[1746425053864,7.0387549,146.84,146.76,28.2738]
[1746425054066,8.7487,146.84,146.81,6.8111]
[1746425054962,26.26,146.85,146.82,6.8105]
[1746425055165,28.2524,146.88,146.8,26.28]
[1746425055470,1.9724,146.88,146.85,6.809]
[1746425056269,8.7804,146.88,146.85,6.809]
[1746425058070,1.9724,146.88,146.85,6.809]
[1746425058666,8.7803,146.88,146.85,6.809]
[1746425059166,1.9724,146.88,146.85,6.809]
[1746425060167,6.8071,146.9,146.86,6.8088]
[1746425060469,26.28,146.91,146.86,6.8088]
[1746425061167,6.8074,146.89,146.86,6.8088]
[1746425061470,26.28,146.91,146.81,28.3906]
[1746425061972,6.8077,146.89,146.85,6.8092]
[1746425062172,26.28,146.91,146.81,28.3906]
[1746425063267,6.8077,146.89,146.85,6.809]
[1746425064572,6.8077,146.89,146.81,28.3906]
[1746425064573,6.8077,146.89,146.86,6.8088]
[1746425064771,6.8079,146.88,146.81,28.3906]
[1746425065269,6.8076,146.89,146.85,6.8089]
[1746425065670,26.28,146.91,146.85,6.8089]
[1746425066273,6.8078,146.89,146.85,6.8089]
[1746425066873,6.8079,146.88,146.85,6.8089]
[1746425067470,6.8084,146.87,146.84,6.8096]
[1746425068879,6.808,146.88,146.84,6.8096]
[1746425071079,6.808,146.88,146.85,6.8092]
[1746425072579,6.8076,146.89,146.86,6.8088]
[1746425072978,26.28,146.91,146.81,28.3906]
[1746425073182,6.8082,146.88,146.85,6.8089]
[1746425073977,6.8076,146.89,146.86,6.8088]
[1746425074281,26.28,146.91,146.86,6.8088]
[1746425074481,6.8079,146.88,146.85,6.8091]
[1746425076479,6.8079,146.88,146.86,6.8088]
[1746425076675,6.8079,146.88,146.81,28.3906]
[1746425077680,10.07995318,146.88,146.82,3.27205318]
[1746425078181,10.07995318,146.88,146.85,6.8091]
[1746425078382,10.07995318,146.88,146.82,3.27205318]
[1746425080275,6.8071,146.9,146.82,3.27205318]
[1746425080476,5.24205318,146.92,146.86,3.27205318]
[1746425080679,3.27205318,146.94,146.88,3.27205318]
[1746425080882,3.27205318,146.96,146.92,6.8057]
[1746425081187,3.27205318,146.96,146.9,3.27205318]
[1746425081375,3.27205318,146.96,146.91,6.8063]
[1746425081577,3.27205318,146.92,146.89,25.9]
[1746425081778,33.04164471,146.95,146.86,25.9]
[1746425081979,33.04164471,146.95,146.82,1.9955]
[1746425082179,5.11004471,146.92,146.83,25.9]
[1746425082383,6.8073,146.9,146.86,6.8088]
[1746425082687,5.11004471,146.92,146.83,25.9]
[1746425082885,1.9397,146.91,146.83,25.9]
[1746425083186,6.8077,146.89,146.85,6.809]
[1746425083387,4.0181,146.91,146.83,25.9]
[1746425083686,6.8082,146.88,146.84,6.8094]
[1746425083887,29.9181,146.91,146.83,25.9]
[1746425084186,6.8077,146.89,146.85,6.8093]
[1746425087189,6.8077,146.89,146.86,6.8088]
[1746425088593,6.8077,146.89,146.85,6.8091]
[1746425089294,29.9181,146.91,146.85,6.8091]
[1746425089794,6.8077,146.89,146.85,6.8091]
[1746425091195,6.8077,146.89,146.86,6.8088]
[1746425091799,6.8077,146.89,146.85,6.8092]
[1746425093098,6.8077,146.89,146.86,6.8086]
[1746425093295,6.8072,146.9,146.86,6.8086]
[1746425093791,6.8075,146.89,146.86,6.8086]
[1746425094395,29.9181,146.91,146.85,6.8091]
[1746425095500,6.8077,146.89,146.85,6.8091]
[1746425096199,6.808,146.88,146.85,6.8091]
[1746425099400,6.8076,146.89,146.85,6.8091]
[1746425099603,6.8076,146.89,146.86,6.8088]
[1746425100402,6.8076,146.89,146.85,6.8091]
[1746425100802,6.8081,146.88,146.85,6.8091]
[1746425101002,6.8081,146.88,146.83,25.9]
[1746425101003,29.9181,146.91,146.84,6.8096]
[1746425101201,2.0393,146.9,146.84,6.8096]
[1746425101398,2.0393,146.9,146.83,25.9]
[1746425102304,6.8079,146.88,146.84,6.8097]
[1746425102803,6.8084,146.87,146.84,6.8097]
[1746425104710,6.8088,146.86,146.83,6.81]
[1746425104912,5.11004471,146.86,146.8,33.66033184]
[1746425105211,6.8095,146.85,146.81,6.8108]
[1746425106008,6.8097,146.84,146.81,6.8108]
[1746425106811,2.0387,146.85,146.8,8.02033184]
[1746425107110,4.1033,146.85,146.8,8.02033184]
[1746425107306,4.1033,146.85,146.8,6.8112]
[1746425108110,4.1033,146.85,146.77,146.91350435]
[1746425108711,4.1033,146.85,146.77,119.29090435]
[1746425108911,5.11004471,146.83,146.75,32.08132736]
[1746425109105,30.75004471,146.83,146.75,32.08132736]
[1746425109305,6.8119,146.8,146.76,6.8133]
[1746425111710,6.8126,146.78,146.75,6.8138]
[1746425112013,25.64,146.83,146.72,34.21882736]
[1746425112207,6.8112,146.81,146.77,6.8128]
[1746425113515,30.75004471,146.83,146.71,38.77037655]
[1746425113516,30.75004471,146.83,146.76,6.8133]
[1746425114308,6.8122,146.79,146.76,6.8133]
[1746425114515,30.75004471,146.83,146.75,6.8138]
[1746425115221,6.8125,146.79,146.75,6.8138]
[1746425116317,25.64,146.79,146.74,6.8142]
[1746425117215,6.813,146.77,146.74,6.8142]
[1746425118113,6.8127,146.78,146.74,6.8142]
[1746425118617,6.8133,146.77,146.73,6.8147]
[1746425118913,5.11004471,146.78,146.71,25.64]
[1746425119516,5.11004471,146.78,146.69,2.0463]
[1746425119715,6.8142,146.75,146.71,6.8155]
[1746425120120,6.8142,146.75,146.72,6.8152]
[1746425120720,6.8136,146.76,146.72,6.8152]
[1746425121320,6.8131,146.77,146.73,6.8145]
[1746425121716,5.11004471,146.78,146.69,2.0463]
[1746425121921,11.92284471,146.78,146.69,2.0463]
[1746425122418,11.92284471,146.78,146.73,6.8144]
[1746425122619,32.4522,146.79,146.69,7.15634471]
[1746425122820,25.64,146.79,146.69,7.15634471]
[1746425124223,25.64,146.79,146.76,6.813]
[1746425124623,25.64,146.79,146.72,25.66]
[1746425124923,25.64,146.79,146.76,6.8132]
[1746425125722,32.4521,146.79,146.76,6.8132]
[1746425126124,25.64,146.79,146.76,6.8132]
[1746425127023,32.4524,146.79,146.76,6.8132]
[1746425127225,25.64,146.79,146.76,6.8132]